bitfinex/quotes_SOLUSD_20250712
["timestamp","ask_amount","ask_price","bid_price","bid_amount"]
[1752361755344,27.49795473,159.79,159.78,31.7]
[1752361755849,28.17795473,159.79,159.78,31.7]
[1752361756049,27.49795473,159.79,159.78,31.7]
[1752361758263,27.49795473,159.79,159.78,32.39]
[1752361759149,27.49795473,159.79,159.78,31.7]
[1752361759757,10.71327076,159.79,159.78,32.39]
[1752361767573,10.71327076,159.79,159.78,42.99056753]
[1752361767765,10.71327076,159.79,159.78,39.0444]
[1752361768772,10.71327076,159.79,159.78,42.99056753]
[1752361772384,10.74327076,159.79,159.78,42.99056753]
[1752361772763,10.74327076,159.79,159.78,131.49056753]
[1752361784497,0.03,159.79,159.78,148.2752515]
[1752361784894,0.03,159.79,159.78,146.85137413]
[1752361786883,0.03,159.79,159.78,165.61137413]
[1752361792803,0.03,159.79,159.78,130.06669016]
[1752361793301,0.03,159.79,159.78,120.89]
[1752361796801,0.03,159.79,159.78,140.19697413]
[1752361798427,0.03,159.79,159.78,137.67468397]
[1752361802926,0.03,159.79,159.78,140.19697413]
[1752361805314,0.03,159.79,159.78,167.17697413]
[1752361807033,0.03,159.79,159.78,185.93697413]
[1752361810735,11.73848943,159.83,159.81,2.52229016]
[1752361811033,11.73848943,159.83,159.82,32.29]
[1752361813837,11.73848943,159.83,159.82,140.06697413]
[1752361814751,11.73848943,159.83,159.82,137.54468397]
[1752361817646,11.73848943,159.83,159.82,120.05]
[1752361819131,11.73848943,159.83,159.82,120.76]
[1752361821548,11.73848943,159.83,159.82,120.05]
[1752361822339,12.41848943,159.83,159.82,120.05]
[1752361824350,12.41848943,159.83,159.82,147.03]
[1752361829061,12.41848943,159.83,159.82,58.56]
[1752361831260,11.73848943,159.83,159.82,58.56]
[1752361834863,11.73848943,159.83,159.82,147.03]
[1752361835355,12.41848943,159.83,159.82,147.03]
[1752361835559,11.73848943,159.83,159.82,147.03]
[1752361837960,11.73848943,159.83,159.82,147.73]
[1752361838569,11.73848943,159.83,159.82,147.03]
[1752361840968,11.73848943,159.83,159.82,147.73]
[1752361848783,11.73848943,159.83,159.82,147.03]
[1752361852191,12.45848943,159.83,159.82,147.03]
[1752361862497,11.73848943,159.83,159.82,147.03]
[1752361862703,11.73848943,159.83,159.82,147.73]
[1752361863810,11.73848943,159.83,159.82,167.03697413]
[1752361865713,11.73848943,159.83,159.82,164.51468397]
[1752361868011,11.73848943,159.83,159.82,183.27468397]
[1752361869311,11.73848943,159.83,159.82,138.80970752]
[1752361870011,0.03,159.84,159.83,16.78468397]
[1752361870196,0.03,159.84,159.83,92.36970752]
[1752361870511,0.03,159.84,159.83,123.88970752]
[1752361872026,0.03,159.84,159.83,107.10502355]
[1752361872214,0.72,159.84,159.83,107.10502355]
[1752361885741,0.03,159.84,159.83,107.10502355]
[1752361886526,0.03,159.84,159.83,124.56970752]
[1752361887739,0.72,159.84,159.83,75.58502355]
[1752361887945,0.72,159.84,159.83,107.10502355]
[1752361900076,0.03,159.84,159.83,107.10502355]
[1752361900451,0.73,159.84,159.83,107.10502355]
[1752361908790,0.73,159.84,159.83,31.52]
[1752361911186,0.03,159.84,159.83,31.52]
[1752361912774,0.03,159.84,159.83,32.23]
[1752361914178,0.03,159.84,159.83,31.52]
[1752361916296,0.03,159.84,159.83,32.23]
[1752361917372,0.03,159.84,159.83,31.52]
[1752361920707,0.73,159.84,159.82,26.98]
[1752361920905,0.73,159.84,159.83,31.52]
[1752361923014,0.73,159.84,159.82,26.98]
[1752361924015,0.73,159.84,159.81,0.06]
[1752361924392,0.73,159.84,159.82,31.52]
[1752361924711,0.73,159.84,159.81,0.06]
[1752361925210,0.78208096,159.83,159.81,0.06]
[1752361925507,0.73,159.84,159.81,0.06]
[1752361925691,0.03,159.84,159.82,31.52]
[1752361925891,0.03,159.84,159.81,0.06]
[1752361926390,0.68,159.83,159.81,0.06]
[1752361927297,0.68,159.83,159.82,31.52]
[1752361927490,0.68,159.83,159.81,0.06]
[1752361929202,0.68,159.83,159.82,31.52]
[1752361929412,0.68,159.83,159.81,0.06]
[1752361931318,0.68,159.83,159.82,31.52]
[1752361931517,0.68,159.83,159.81,0.06]
[1752361933528,0.68,159.83,159.82,31.52]
[1752361933714,0.68,159.83,159.81,0.06]
[1752361935625,1.46208096,159.83,159.81,0.06]
[1752361936011,0.78208096,159.83,159.81,0.06]
[1752361936520,0.68,159.82,159.81,0.06]
[1752361938519,0.68,159.82,159.81,31.58]
[1752361942033,0.68,159.83,159.81,31.58]
[1752361946434,0.71,159.84,159.81,31.58]
[1752361957955,0.71,159.84,159.81,32.3]
[1752361959232,0.71,159.84,159.81,31.58]
[1752361964546,0.78208096,159.83,159.81,31.58]
[1752361964974,0.03,159.84,159.81,31.58]
[1752361965140,0.67,159.83,159.81,31.58]
[1752361966258,0.7,159.84,159.81,32.3]
[1752361969570,0.7,159.84,159.82,0.72]
[1752361969571,0.03,159.84,159.82,0.72]
[1752361969746,0.03,159.84,159.83,31.52]
[1752361970264,0.03,159.84,159.83,32.24]
[1752361970665,0.03,159.84,159.83,31.52]
[1752361972749,0.7,159.84,159.83,31.52]
[1752361977469,0.7,159.84,159.81,0.06]
[1752361978575,0.7,159.84,159.82,31.5]
[1752361979257,0.67,159.83,159.82,31.5]
[1752361981571,0.7,159.84,159.82,31.5]
[1752361981962,0.03,159.84,159.82,32.22]
[1752361982773,0.03,159.84,159.82,31.5]
[1752361983274,0.7,159.84,159.82,31.5]
[1752361986775,0.7,159.84,159.81,0.06]
[1752361987863,0.7,159.84,159.82,31.5]
[1752361988173,1.48203203,159.84,159.81,0.06]
[1752361988550,0.67,159.83,159.81,0.06]
[1752361989377,0.67,159.83,159.82,31.5]
[1752361989580,0.67,159.83,159.81,0.06]
[1752361992870,0.67,159.83,159.82,31.5]
[1752361993072,0.67,159.83,159.81,0.06]
[1752361994269,0.7,159.84,159.81,0.78]
[1752361994472,0.7,159.84,159.81,0.06]
[1752361994882,0.67,159.83,159.81,0.06]
[1752361995082,0.67,159.83,159.82,31.5]
[1752361995301,0.67,159.83,159.81,0.06]
[1752361996789,0.67,159.82,159.81,0.06]
[1752361997391,0.67,159.83,159.81,31.56]
[1752361997774,0.03,159.84,159.81,32.28]
[1752361997975,0.03,159.84,159.82,0.72]
[1752361998997,0.03,159.84,159.83,0.72]
[1752362001592,0.03,159.84,159.81,31.56]
[1752362001779,0.03,159.84,159.82,0.72]
[1752362008407,0.03,159.84,159.83,0.72]
[1752362009802,0.03,159.84,159.83,32.22]
[1752362014352,0.03,159.84,159.83,31.5]
[1752362021266,0.03,159.84,159.83,32.21]
[1752362024328,0.03,159.84,159.83,59.19]
[1752362036666,0.03,159.84,159.83,58.48]
[1752362037153,0.03,159.84,159.83,59.19]
[1752362042369,0.03,159.84,159.83,58.48]
[1752362042550,0.74,159.84,159.83,58.48]
[1752362047647,0.74,159.84,159.81,0.06]
[1752362048971,0.74,159.84,159.82,31.48]
[1752362049150,0.74,159.84,159.81,0.06]
[1752362050253,0.74,159.84,159.82,31.48]
[1752362050466,0.74,159.84,159.81,0.06]
[1752362051770,0.74,159.84,159.82,31.48]
[1752362051971,0.69,159.83,159.82,31.48]
[1752362053262,0.72,159.84,159.82,31.48]
[1752362060471,0.03,159.84,159.83,0.71]
[1752362060668,0.03,159.84,159.82,31.48]
[1752362060975,0.03,159.84,159.82,32.19]
[1752362061779,0.03,159.84,159.82,31.48]
[1752362061963,0.72,159.84,159.82,31.48]
[1752362065383,0.72,159.84,159.82,58.46]
[1752362065761,0.69,159.83,159.82,58.46]
[1752362067286,0.72,159.84,159.82,58.46]
[1752362069681,0.03,159.84,159.82,58.46]
[1752362069884,0.03,159.84,159.82,59.17]
[1752362073504,0.72,159.84,159.82,58.46]
[1752362074478,0.03,159.84,159.82,58.46]
[1752362074679,0.03,159.84,159.82,59.17]
[1752362076771,0.03,159.84,159.82,58.46]
[1752362078194,0.71,159.84,159.82,58.46]
[1752362079489,0.03,159.84,159.82,58.46]
[1752362079800,0.71,159.84,159.82,58.46]
[1752362080898,0.03,159.84,159.82,58.46]
[1752362081104,0.03,159.84,159.82,59.13]
[1752362086486,0.03,159.84,159.83,0.67]
[1752362093018,0.03,159.84,159.83,3.19343326]
[1752362093214,0.03,159.84,159.83,2.52343326]
[1752362093426,0.03,159.84,159.83,3.19343326]
[1752362093597,0.03,159.84,159.83,115.83604078]
[1752362093808,0.03,159.84,159.83,121.99474078]
[1752362096822,24.12222775,159.87,159.86,16.78468397]
[1752362097134,0.03,159.92,159.86,50.78811723]
[1752362097307,0.03,159.92,159.88,19.30811723]
[1752362097499,0.03,159.92,159.89,31.48]
[1752362097700,0.03,159.92,159.89,32.15]
[1752362097900,0.03,159.92,159.9,0.67]
[1752362098224,0.03,159.92,159.91,31.48]
[1752362099031,0.03,159.92,159.91,32.15]
[1752362101544,0.03,159.92,159.91,51.45811723]
[1752362101843,0.03,159.92,159.91,58.08801723]
[1752362103234,0.03,159.92,159.91,86.94175027]
[1752362103414,0.03,159.92,159.91,76.84801723]
[1752362104837,0.03,159.92,159.91,78.25779858]
[1752362107037,0.2,159.95,159.94,16.78468397]
[1752362107235,0.2,159.95,159.94,127.70292213]
[1752362107541,0.2,159.95,159.94,128.40292213]
[1752362111636,0.2,159.95,159.94,124.46970752]
[1752362111845,0.2,159.95,159.94,128.40292213]
[1752362112225,0.38,159.98,159.94,128.40292213]
[1752362112430,0.38,159.98,159.94,127.70292213]
[1752362112641,0.38,159.98,159.95,0.7]
[1752362112936,0.03,159.99,159.96,31.44]
[1752362113241,0.03,159.99,159.96,107.66502355]
[1752362114139,0.71,159.99,159.96,107.66502355]
[1752362114839,0.03,159.99,159.96,106.96502355]
[1752362115046,0.03,159.99,159.97,0.7]
[1752362115338,0.03,159.99,159.98,31.44]
[1752362118846,0.71,159.99,159.98,31.44]
[1752362119356,0.03,159.99,159.98,31.44]
[1752362124151,0.03,159.99,159.98,32.14]
[1752362126561,0.03,159.99,159.98,126.96658779]
[1752362129252,0.03,159.99,159.98,124.44970752]
[1752362129448,0.03,159.99,159.98,123.74970752]
[1752362130055,0.03,159.99,159.98,150.70970752]
[1752362130450,0.03,159.99,159.98,153.92658779]
[1752362130668,0.03,159.99,159.98,151.40970752]
[1752362133568,0.03,159.99,159.98,153.92658779]
[1752362139873,0.03,159.99,159.98,78.40156424]
[1752362140753,0.03,159.99,159.98,75.88468397]
[1752362140980,0.72,159.99,159.98,26.96]
[1752362141148,0.72,159.99,159.98,58.4]
[1752362167189,0.03,159.99,159.98,58.4]
[1752362167391,0.03,159.99,159.98,59.09]
[1752362167575,0.03,159.99,159.98,58.4]
[1752362175795,0.03,159.99,159.98,75.87468397]
[1752362180498,0.03,159.99,159.98,78.3924735]
[1752362182678,0.03,159.99,159.98,97.1524735]
[1752362184609,0.03,159.99,159.98,94.63468397]
[1752362188905,0.03,159.99,159.98,97.1524735]
[1752362191008,0.03,159.99,159.98,43.74468397]
[1752362191218,0.03,159.99,159.98,75.16468397]
[1752362191432,0.03,159.99,159.98,75.85468397]
[1752362193202,0.03,159.99,159.98,94.61468397]
[1752362193407,0.03,159.99,159.98,75.85468397]
[1752362195009,0.03,159.99,159.98,75.16468397]
[1752362198719,0.03,159.99,159.98,75.82468397]
[1752362200313,0.03,159.99,159.98,44.40468397]
[1752362200514,0.03,159.99,159.98,75.82468397]
[1752362201339,0.03,159.99,159.98,97.1024735]
[1752362201648,0.03,159.99,159.98,133.1024735]
[1752362209338,0.03,159.99,159.98,123.1024735]
[1752362209541,0.03,159.99,159.98,133.1024735]
[1752362220132,0.03,159.99,159.98,107.1024735]
[1752362224151,0.2,160.0,159.99,45.54468397]
[1752362224333,0.2,160.0,159.99,90.21363162]
[1752362224534,0.2,160.0,159.99,91.12563162]
[1752362224736,0.2,160.0,159.99,91.78563162]
[1752362226541,0.87,160.08,160.04,35.54468397]
[1752362226746,0.87,160.08,160.05,52.69778953]
[1752362227260,0.87,160.08,160.07,16.78468397]
[1752362227458,0.87,160.08,160.07,48.20468397]
[1752362231265,0.87,160.08,160.07,136.70468397]
[1752362233676,0.2,160.08,160.07,139.2224735]
[1752362240491,0.2,160.08,160.07,136.70468397]
[1752362243096,0.89,160.08,160.07,136.70468397]
[1752362245201,0.89,160.08,160.07,163.64468397]
[1752362246609,0.89,160.08,160.07,182.40468397]
[1752362246819,0.89,160.08,160.07,163.64468397]
[1752362249712,0.2,160.08,160.07,163.64468397]
[1752362249920,0.2,160.08,160.07,166.1624735]
[1752362250109,0.2,160.08,160.07,185.5924735]
[1752362250890,0.03,160.12,160.11,105.05468397]
[1752362251098,0.03,160.12,160.11,138.9724735]
[1752362251311,0.03,160.12,160.11,139.6424735]
[1752362253920,0.72,160.12,160.11,136.45468397]
[1752362256122,0.03,160.12,160.11,136.45468397]
[1752362256717,0.03,160.12,160.11,155.21468397]
[1752362256923,0.03,160.12,160.11,136.45468397]
[1752362257702,0.03,160.12,160.11,138.9724735]
[1752362258334,0.03,160.12,160.11,139.6724735]
[1752362260917,0.67,160.14,160.13,88.24]
[1752362261226,0.67,160.14,160.13,119.64]
[1752362263431,0.87,160.15,160.14,16.78468397]
[1752362263619,0.2,160.15,160.14,48.18468397]
[1752362264134,0.87,160.15,160.14,48.18468397]
[1752362264816,0.2,160.15,160.14,48.18468397]
[1752362265250,0.2,160.15,160.14,51.4024735]
[1752362265424,0.2,160.15,160.14,139.6424735]
[1752362266433,0.2,160.15,160.14,168.4024735]
[1752362267327,0.2,160.15,160.14,158.4024735]
[1752362267531,0.2,160.15,160.14,194.4024735]
[1752362269736,0.2,160.18,160.17,159.55468397]
[1752362269943,0.2,160.18,160.17,343.3524735]
[1752362270244,0.2,160.18,160.17,344.0524735]
[1752362273343,0.2,160.18,160.17,312.6724735]
[1752362273540,0.2,160.18,160.17,344.0924735]
[1752362273846,0.87,160.18,160.17,254.69468397]
[1752362274142,0.87,160.18,160.17,286.13468397]
[1752362275742,0.87,160.18,160.17,136.23468397]
[1752362276044,0.87,160.18,160.17,138.7524735]
[1752362276417,0.87,160.18,160.17,136.23468397]
[1752362279549,0.87,160.18,160.17,163.15468397]
[1752362281563,0.87,160.18,160.17,146.37]
[1752362282973,2.5181,160.18,160.17,58.36]
[1752362283169,2.5181,160.18,160.13,88.01]
[1752362283170,9.1592,160.18,160.16,26.92]
[1752362283360,0.67,160.17,160.16,26.92]
[1752362284565,0.67,160.17,160.16,58.36]
[1752362289862,0.67,160.17,160.13,16.78468397]
[1752362290063,0.68,160.16,160.13,104.79468397]
[1752362291062,0.68,160.16,160.14,31.44]
[1752362291266,0.68,160.16,160.15,26.92]
[1752362293384,0.68,160.16,160.15,114.93]
[1752362296283,1.8481,160.18,160.15,114.93]
[1752362296586,0.88,160.18,160.16,31.44]
[1752362299376,0.88,160.18,160.16,119.45]
[1752362306896,0.2,160.18,160.16,119.45]
[1752362307509,0.2,160.18,160.17,17.45468397]
[1752362307695,0.2,160.18,160.17,105.46468397]
[1752362308105,0.2,160.18,160.17,104.79468397]
[1752362308882,0.88,160.18,160.17,104.79468397]
[1752362309083,0.88,160.18,160.17,119.43]
[1752362317198,0.88,160.18,160.17,31.42]
[1752362319704,2.5071,160.18,160.17,31.42]
[1752362320099,3.28747208,160.18,160.17,31.42]
[1752362322131,2.5071,160.18,160.17,31.42]
[1752362326514,3.28747208,160.18,160.17,31.42]
[1752362326928,3.28747208,160.18,160.16,0.06]
[1752362327131,0.71,160.17,160.16,0.06]
[1752362328135,0.71,160.17,160.16,31.48]
[1752362338940,0.2,160.18,160.16,32.19]
[1752362340621,0.2,160.18,160.17,0.71]
[1752362341025,0.2,160.18,160.16,120.2]
[1752362341941,0.91,160.18,160.16,119.49]
[1752362343638,0.71,160.17,160.16,119.49]
[1752362343840,0.71,160.17,160.16,31.48]
[1752362344045,0.91,160.18,160.16,31.48]
[1752362348148,0.2,160.18,160.16,31.48]
[1752362348451,0.2,160.18,160.16,32.18]
[1752362351140,0.2,160.18,160.16,31.48]
[1752362351341,0.2,160.18,160.17,0.7]
[1752362359567,0.2,160.18,160.17,27.62]
[1752362363252,0.88,160.18,160.17,58.32]
[1752362364651,0.88,160.18,160.17,26.92]
[1752362364856,0.88,160.18,160.17,58.32]
[1752362365945,0.88,160.18,160.16,88.07]
[1752362366152,0.68,160.17,160.16,88.07]
[1752362367074,0.68,160.17,160.16,119.47]
[1752362367381,0.68,160.17,160.16,31.46]
[1752362368475,2.3245,160.17,160.16,31.46]
[1752362370280,2.3245,160.17,160.15,26.98]
[1752362370466,1.46046953,160.16,160.15,26.98]
[1752362370882,1.46046953,160.16,160.12,26.98]
[1752362371182,0.68,160.15,160.12,26.98]
[1752362371388,0.68,160.15,160.13,31.44]
[1752362380096,0.66,160.15,160.13,32.1]
[1752362380401,0.66,160.15,160.13,31.44]
[1752362381099,0.66,160.16,160.13,32.1]
[1752362383922,0.66,160.16,160.13,31.44]
[1752362385813,0.66,160.15,160.13,31.44]
[1752362393503,0.780567,160.14,160.13,31.44]
[1752362393703,1.440567,160.14,160.12,26.98]
[1752362394130,0.66,160.13,160.12,26.98]
[1752362394921,0.66,160.13,160.12,58.42]
[1752362400615,0.66,160.13,160.09,26.94]
[1752362401705,0.66,160.13,160.09,27.6]
[1752362401911,0.66,160.12,160.1,32.08]
[1752362402620,0.66,160.12,160.1,31.42]
[1752362402828,0.78046953,160.16,160.1,32.08]
[1752362403011,0.66,160.13,160.1,32.08]
[1752362403417,0.66,160.15,160.11,0.66]
[1752362403607,0.66,160.15,160.12,31.42]
[1752362403814,0.78046953,160.16,160.12,32.08]
[1752362404121,1.44046953,160.16,160.12,32.08]
[1752362404318,0.66,160.15,160.12,32.08]
[1752362404702,0.78046953,160.16,160.12,31.42]
[1752362405028,1.44046953,160.16,160.13,0.66]
[1752362405328,1.44046953,160.16,160.14,31.42]
[1752362406517,0.78046953,160.16,160.14,31.42]
[1752362406725,0.66,160.15,160.14,31.42]
[1752362408532,0.69,160.15,160.14,31.42]
[1752362409319,0.03,160.15,160.14,31.42]
[1752362410731,0.69,160.15,160.14,31.42]
[1752362412825,0.03,160.15,160.14,31.42]
[1752362414131,0.03,160.15,160.14,32.08]
[1752362422449,0.03,160.15,160.14,59.02]
[1752362424168,0.69,160.15,160.14,58.36]
[1752362426341,0.03,160.15,160.14,58.36]
[1752362431361,0.03,160.15,160.14,59.02]
[1752362451486,0.69,160.15,160.14,58.36]
[1752362452686,0.03,160.15,160.14,58.36]
[1752362452882,0.03,160.15,160.14,59.08]
[1752362456971,0.13116168,160.18,160.14,78.37826635]
[1752362457287,0.13116168,160.18,160.15,0.72]
[1752362457490,0.13116168,160.18,160.16,31.4]
[1752362457686,0.13116168,160.18,160.17,0.72]
[1752362470108,0.13116168,160.18,160.16,31.4]
[1752362470310,0.13116168,160.18,160.16,32.08]
[1752362471009,0.13116168,160.18,160.16,31.4]
[1752362471207,0.13116168,160.18,160.17,0.68]
[1752362472610,0.83116168,160.18,160.16,31.4]
[1752362474219,0.7804208,160.17,160.16,31.4]
[1752362474403,1.4804208,160.17,160.16,31.4]
[1752362476520,0.7804208,160.17,160.16,31.4]
[1752362476827,0.7,160.17,160.16,31.4]
[1752362480931,0.13116168,160.18,160.16,31.4]
[1752362481235,0.83116168,160.18,160.16,31.4]
[1752362487845,0.13116168,160.18,160.16,31.4]
[1752362488141,0.13116168,160.18,160.16,32.08]
[1752362490568,0.13116168,160.18,160.16,31.4]
[1752362490727,0.7,160.17,160.16,31.4]
[1752362491425,0.83116168,160.18,160.16,31.4]
[1752362497850,0.83116168,160.18,160.16,32.06]
[1752362498248,0.13116168,160.18,160.16,32.06]
[1752362499850,0.13116168,160.18,160.16,31.4]
[1752362500154,0.85116168,160.18,160.16,31.4]
[1752362502336,0.13116168,160.18,160.16,32.06]
[1752362503651,0.13116168,160.18,160.17,0.66]
[1752362520166,0.13116168,160.18,160.17,107.96826635]
[1752362520677,0.13116168,160.18,160.17,136.85468397]
[1752362524573,0.13116168,160.18,160.17,139.36826635]
[1752362541587,0.13116168,160.18,160.17,136.85468397]
[1752362541880,0.13116168,160.18,160.17,139.36826635]
[1752362553704,0.04880095,160.18,160.17,139.36826635]
[1752362558420,0.03,160.2,160.18,87.96119905]
[1752362558613,0.03,160.2,160.19,50.67826635]
[1752362558822,0.03,160.2,160.19,51.36826635]
[1752362562628,0.03,160.2,160.19,139.3294654]
[1752362566122,0.03,160.2,160.19,149.3294654]
[1752362567115,0.03,160.2,160.19,146.81588302]
[1752362567320,0.03,160.2,160.19,149.3294654]
[1752362568529,0.03,160.22,160.2,87.93119905]
[1752362568729,0.03,160.22,160.21,33.89358238]
[1752362568909,0.03,160.22,160.21,34.58358238]
[1752362570010,0.03,160.22,160.21,33.89358238]
[1752362570202,0.03,160.22,160.21,34.58358238]
[1752362571730,0.03,160.22,160.21,51.36826635]
[1752362574525,0.03,160.22,160.21,139.2994654]
[1752362574722,0.71,160.22,160.21,138.5894654]
[1752362576114,0.71,160.22,160.21,165.5094654]
[1752362578821,0.03,160.22,160.21,165.5094654]
[1752362580942,0.03,160.22,160.21,162.99588302]
[1752362581239,0.03,160.22,160.21,165.5094654]
[1752362581542,0.03,160.22,160.21,166.1994654]
[1752362582042,0.03,160.22,160.21,165.5094654]
[1752362582368,0.03,160.22,160.21,162.99588302]
[1752362582646,0.71,160.22,160.21,146.21119905]
[1752362582813,0.71,160.22,160.21,58.28]
[1752362585745,0.03,160.22,160.21,77.57826635]
[1752362586040,0.71,160.22,160.21,75.06468397]
[1752362586237,0.71,160.22,160.21,162.99588302]
[1752362588353,0.71,160.22,160.21,146.21119905]
[1752362592155,0.71,160.22,160.21,58.28]
[1752362597838,0.03,160.22,160.21,75.06468397]
[1752362598144,0.03,160.22,160.21,162.99588302]
[1752362600751,0.03,160.22,160.21,162.99588302]
[1752362610361,0.7,160.22,160.21,162.99588302]
[1752362611260,0.7,160.22,160.21,146.21119905]
[1752362622574,0.03,160.22,160.21,146.21119905]
[1752362623160,0.03,160.22,160.21,146.90119905]
[1752362625481,0.03,160.22,160.21,166.1994654]
[1752362630187,0.03,160.22,160.21,165.5094654]
[1752362631784,0.03,160.22,160.21,162.99588302]
[1752362632485,0.03,160.22,160.21,163.68588302]
[1752362632873,0.03,160.22,160.21,162.99588302]
[1752362640699,0.72,160.22,160.21,131.63588302]
[1752362640886,0.72,160.22,160.21,162.99588302]
[1752362648808,0.03,160.22,160.21,162.99588302]
[1752362649705,0.03,160.22,160.21,163.69588302]
[1752362651210,0.03,160.22,160.21,162.99588302]
[1752362655808,0.03,160.22,160.21,163.69588302]
[1752362657106,0.03,160.22,160.21,162.99588302]
[1752362663721,0.03,160.22,160.21,163.69588302]
[1752362663900,0.03,160.22,160.21,162.99588302]
[1752362671317,0.75,160.22,160.21,162.99588302]
[1752362677248,0.03,160.22,160.21,162.99588302]
[1752362689748,0.03,160.22,160.21,163.69588302]
[1752362691037,0.03,160.22,160.21,162.99588302]
[1752362693458,0.69,160.22,160.21,162.99588302]
[1752362698562,0.69,160.22,160.21,146.21119905]
[1752362701049,0.69,160.22,160.21,26.92]
[1752362701349,0.69,160.22,160.2,26.92]
[1752362701550,0.69,160.22,160.19,26.98]
[1752362702764,0.69,160.22,160.2,31.34]
[1752362721263,0.78022595,160.21,160.2,31.34]
[1752362721462,1.48022595,160.21,160.2,31.34]
[1752362721762,1.6205,160.2,160.19,26.98]
[1752362721964,2.3205,160.2,160.17,26.92]
[1752362722263,0.7,160.19,160.17,26.92]
[1752362723063,0.7,160.19,160.18,31.36]
[1752362733088,0.7,160.19,160.16,26.92]
[1752362733381,1.48032336,160.19,160.17,31.36]
[1752362733574,1.48032336,160.19,160.16,26.92]
[1752362733773,0.7,160.18,160.16,26.92]
[1752362734665,0.7,160.18,160.17,31.36]
[1752362734870,0.7,160.18,160.16,26.92]
[1752362735070,1.48037208,160.18,160.15,0.06]
[1752362735472,0.7,160.17,160.13,26.92]
[1752362735773,0.78046953,160.16,160.13,26.92]
[1752362735982,0.7,160.15,160.14,31.36]
[1752362736174,0.7,160.15,160.13,26.92]
[1752362737684,0.7,160.15,160.14,31.36]
[1752362737880,0.7,160.15,160.13,26.92]
[1752362739387,0.7,160.15,160.14,31.36]
[1752362739692,0.7,160.15,160.13,26.92]
[1752362741498,0.7,160.15,160.14,31.36]
[1752362741680,0.7,160.15,160.13,26.92]
[1752362743498,0.7,160.15,160.12,0.06]
[1752362743703,2.2858,160.15,160.1,26.94]
[1752362743886,1.460567,160.14,160.1,26.94]
[1752362744091,0.68,160.13,160.1,26.94]
[1752362745105,0.68,160.13,160.1,27.64]
[1752362745897,0.68,160.13,160.11,31.36]
[1752362749106,1.5858,160.15,160.12,0.7]
[1752362749407,0.78037208,160.18,160.12,0.7]
[1752362749905,1.49032336,160.19,160.12,0.7]
[1752362750108,0.68,160.18,160.12,0.7]
[1752362755109,0.81032336,160.19,160.12,0.7]
[1752362755315,0.03,160.19,160.12,0.7]
[1752362755485,0.03,160.19,160.12,88.63119905]
[1752362755813,0.03,160.19,160.13,0.7]